fUST/lending_fUST_20240824
["ID","MTS","AMOUNT","RATE_DAILY","PERIOD"]
[335791981,1724493046574,-1992.01,0.00013698,2]
[335791983,1724493046583,-1210.89,0.00013698,2]
[335791985,1724493046592,-724.25,0.00013698,2]
[335791986,1724493046602,-500.0,0.00013698,2]
[335791988,1724493046611,-500.0,0.00013698,2]
[335791990,1724493046621,-395.68985819,0.00013698,2]
[335791992,1724493046631,-150.0,0.00013698,2]
[335791994,1724493046641,-500.0,0.00013698,2]
[335791997,1724493046653,-500.0,0.00013698,2]
[335791999,1724493046663,-12318.53,0.00013698,2]
[335792001,1724493046673,-500.0,0.00013698,2]
[335792003,1724493046682,-1022.06,0.00013698,2]
[335792005,1724493046692,-500.0,0.00013698,2]
[335792007,1724493046703,-500.0,0.00013698,2]
[335792009,1724493046713,-4222.08627581,0.00013698,2]
[335792101,1724493047571,-11461.81914883,0.00013698,2]
[335792125,1724493047794,-503.24680595,0.00013698,2]
[335792132,1724493047857,-18.3840454,0.00013698,2]
[335792143,1724493048566,-4642.17372401,0.00013698,2]
[335792144,1724493048576,-1246.57,0.00013698,2]
[335792145,1724493048587,-500.0,0.00013698,2]
[335792146,1724493048597,-500.0,0.00013698,2]
[335792147,1724493048608,-500.0,0.00013698,2]
[335792148,1724493048618,-500.0,0.00013698,2]
[335792149,1724493048628,-519.3117229,0.00013698,2]
[335792150,1724493048638,-1806.98,0.00013698,2]
[335792151,1724493048649,-6072.14,0.00013698,2]
[335792152,1724493048659,-500.0,0.00013698,2]
[335792153,1724493048669,-1000.0,0.00013698,2]
[335792154,1724493048679,-500.0,0.00013698,2]
[335792155,1724493048689,-500.0,0.00013698,2]
[335792156,1724493048698,-500.0,0.00013698,2]
[335792157,1724493048708,-7127.21,0.00013698,2]
[335792158,1724493048717,-500.11097897,0.00013698,2]
[335792159,1724493048728,-500.0,0.00013698,2]
[335792160,1724493048738,-500.0,0.00013698,2]
[335792161,1724493048748,-500.0,0.00013698,2]
[335792162,1724493048759,-1253.69,0.00013698,2]
[335792163,1724493048770,-500.0,0.00013698,2]
[335792164,1724493048780,-3702.44,0.00013698,2]
[335792165,1724493048789,-500.0,0.00013698,2]
[335792166,1724493048799,-2125.16,0.00013698,2]
[335792167,1724493048808,-738.16,0.00013698,2]
[335792168,1724493048819,-500.0,0.00013698,2]
[335792169,1724493048828,-500.0,0.00013698,2]
[335792170,1724493048838,-500.0,0.00013698,2]
[335792171,1724493048849,-3724.3,0.00013698,2]
[335792172,1724493048859,-2876.75,0.00013698,2]
[335792173,1724493048869,-500.0,0.00013698,2]
[335792174,1724493048879,-506.11145161,0.00013698,2]
[335792176,1724493048889,-500.0,0.00013698,2]
[335792178,1724493048899,-315.123111,0.00013698,2]
[335792180,1724493048908,-1226.14,0.00013698,2]
[335792182,1724493048918,-500.0,0.00013698,2]
[335792184,1724493048928,-500.0,0.00013698,2]
[335792186,1724493048938,-500.0,0.00013698,2]
[335792188,1724493048948,-563.38061679,0.00013698,2]
[335792190,1724493048958,-500.0,0.00013698,2]
[335792192,1724493048968,-975.67,0.00013698,2]
[335792194,1724493048978,-500.0,0.00013698,2]
[335792196,1724493048989,-992.25,0.00013698,2]
[335792199,1724493049002,-975.67,0.00013698,2]
[335792200,1724493049012,-1977.39,0.00013698,2]
[335792203,1724493049022,-975.67,0.00013698,2]
[335792205,1724493049032,-975.67,0.00013698,2]
[335792207,1724493049042,-500.0,0.00013698,2]
[335792209,1724493049052,-975.67,0.00013698,2]
[335792211,1724493049062,-975.67,0.00013698,2]
[335792213,1724493049073,-975.67,0.00013698,2]
[335792215,1724493049083,-500.0,0.00013698,2]
[335792217,1724493049093,-975.67,0.00013698,2]
[335792219,1724493049103,-500.37530072,0.00013698,2]
[335792221,1724493049113,-501.2626616,0.00013698,2]
[335792223,1724493049124,-975.67,0.00013698,2]
[335792225,1724493049134,-975.67,0.00013698,2]
[335792227,1724493049149,-975.67,0.00013698,2]
[335792229,1724493049160,-975.67,0.00013698,2]
[335792231,1724493049170,-975.67,0.00013698,2]
[335792233,1724493049180,-975.67,0.00013698,2]
[335792236,1724493049190,-500.0,0.00013698,2]
[335792238,1724493049200,-975.67,0.00013698,2]
[335792240,1724493049210,-592.25,0.00013698,2]
[335792242,1724493049221,-975.67,0.00013698,2]
[335792244,1724493049231,-500.0,0.00013698,2]
[335792246,1724493049241,-975.67,0.00013698,2]
[335792248,1724493049251,-377.1852082,0.00013698,2]
[335792250,1724493049261,-500.0,0.00013698,2]
[335792252,1724493049271,-975.67,0.00013698,2]
[335792254,1724493049280,-500.0,0.00013698,2]
[335792256,1724493049291,-975.67,0.00013698,2]
[335792258,1724493049301,-975.67,0.00013698,2]
[335792260,1724493049311,-975.67,0.00013698,2]
[335792262,1724493049320,-975.67,0.00013698,2]
[335792264,1724493049331,-975.67,0.00013698,2]
[335792266,1724493049342,-975.77001071,0.00013698,2]
[335792268,1724493049353,-500.0,0.00013698,2]
[335792270,1724493049363,-802.15,0.00013698,2]
[335792273,1724493049374,-2106.97,0.00013698,2]
[335792275,1724493049384,-533.26,0.00013698,2]
[335792277,1724493049393,-2541.17,0.00013698,2]
[335792279,1724493049403,-500.0,0.00013698,2]
[335792281,1724493049414,-997.2,0.00013698,2]
[335792283,1724493049423,-500.0,0.00013698,2]
[335792285,1724493049433,-2110.23,0.00013698,2]
[335792286,1724493049443,-500.0,0.00013698,2]
[335792287,1724493049453,-500.0,0.00013698,2]
[335792288,1724493049463,-891.4,0.00013698,2]
[335792289,1724493049473,-1307.84,0.00013698,2]
[335792290,1724493049483,-500.0,0.00013698,2]
[335792291,1724493049493,-1307.84,0.00013698,2]
[335792293,1724493049503,-500.0,0.00013698,2]
[335792295,1724493049515,-1307.84,0.00013698,2]
[335792297,1724493049524,-1307.84,0.00013698,2]
[335792298,1724493049536,-1307.84,0.00013698,2]
[335792300,1724493049547,-500.0,0.00013698,2]
[335792302,1724493049558,-1307.84,0.00013698,2]
[335792303,1724493049569,-677.8,0.00013698,2]
[335792305,1724493049579,-1307.84,0.00013698,2]
[335792307,1724493049591,-1307.84,0.00013698,2]
[335792309,1724493049601,-640.64,0.00013698,2]
[335792310,1724493049611,-1307.84,0.00013698,2]
[335792311,1724493049621,-1307.84,0.00013698,2]
[335792312,1724493049631,-711.63,0.00013698,2]
[335792313,1724493049642,-1307.84,0.00013698,2]
[335792314,1724493049652,-1307.84,0.00013698,2]
[335792315,1724493049663,-8602.31,0.00013698,2]
[335792316,1724493049672,-1307.84,0.00013698,2]
[335792317,1724493049682,-1307.84,0.00013698,2]
[335792318,1724493049692,-1307.84,0.00013698,2]
[335792319,1724493049702,-1307.84,0.00013698,2]
[335792320,1724493049712,-500.0,0.00013698,2]
[335792321,1724493049721,-1307.84,0.00013698,2]
[335792322,1724493049732,-1307.84,0.00013698,2]
[335792323,1724493049741,-1307.84,0.00013698,2]
[335792324,1724493049751,-1307.84,0.00013698,2]
[335792325,1724493049760,-1307.84,0.00013698,2]
[335792326,1724493049770,-1307.84,0.00013698,2]
[335792327,1724493049779,-500.0,0.00013698,2]
[335792328,1724493049789,-1307.84,0.00013698,2]
[335792329,1724493049799,-1307.906219,0.00013698,2]
[335792330,1724493049809,-500.0,0.00013698,2]
[335792331,1724493049819,-591.56697703,0.00013698,2]
[335792332,1724493049828,-579.23,0.00013698,2]
[335792333,1724493049838,-3738.96,0.00013698,2]
[335792334,1724493049848,-2266.33,0.00013698,2]
[335792335,1724493049861,-500.0,0.00013698,2]
[335792336,1724493049871,-1644.94,0.00013698,2]
[335792337,1724493049881,-985.4,0.00013698,2]
[335792338,1724493049891,-500.0,0.00013698,2]
[335792339,1724493049901,-1028.4,0.00013698,2]
[335792340,1724493049911,-630.67322571,0.00013698,2]
[335792341,1724493049920,-500.0,0.00013698,2]
[335792342,1724493049931,-940.52,0.00013698,2]
[335792343,1724493049940,-500.0,0.00013698,2]
[335792344,1724493049951,-3448.29,0.00013698,2]
[335792345,1724493049961,-500.0,0.00013698,2]
[335792346,1724493049971,-514.21811915,0.00013698,2]
[335792347,1724493049980,-5796.59,0.00013698,2]
[335792348,1724493049992,-1062.66,0.00013698,2]
[335792349,1724493050003,-923.28,0.00013698,2]
[335792350,1724493050012,-913.64,0.00013698,2]
[335792351,1724493050023,-673.98,0.00013698,2]
[335792352,1724493050032,-806.44,0.00013698,2]
[335792353,1724493050042,-500.0,0.00013698,2]
[335792354,1724493050052,-521.09788376,0.00013698,2]
[335792355,1724493050061,-693.32,0.00013698,2]
[335792356,1724493050071,-522.01,0.00013698,2]
[335792357,1724493050081,-500.0,0.00013698,2]
[335792358,1724493050090,-502.53864449,0.00013698,2]
[335792359,1724493050100,-500.0,0.00013698,2]
[335792360,1724493050110,-9535.01,0.00013698,2]
[335792361,1724493050121,-500.0,0.00013698,2]
[335792362,1724493050132,-500.0,0.00013698,2]
[335792363,1724493050144,-11466.31,0.00013698,2]
[335792364,1724493050156,-500.0,0.00013698,2]
[335792365,1724493050167,-760.0,0.00013698,2]
[335792366,1724493050176,-641.29,0.00013698,2]
[335792367,1724493050189,-996.35,0.00013698,2]
[335792368,1724493050199,-3534.66,0.00013698,2]
[335792369,1724493050209,-726.4,0.00013698,2]
[335792370,1724493050220,-836.77,0.00013698,2]
[335792371,1724493050231,-503.35788423,0.00013698,2]
[335792372,1724493050243,-500.0,0.00013698,2]
[335792373,1724493050253,-500.0,0.00013698,2]
[335792374,1724493050263,-1821.44,0.00013698,2]
[335792375,1724493050273,-1292.65,0.00013698,2]
[335792376,1724493050283,-500.0,0.00013698,2]
[335792377,1724493050293,-1930.12,0.00013698,2]
[335792378,1724493050303,-500.0,0.00013698,2]
[335792379,1724493050314,-500.0,0.00013698,2]
[335792380,1724493050324,-500.0,0.00013698,2]
[335792381,1724493050336,-717.09,0.00013698,2]
[335792382,1724493050347,-500.0,0.00013698,2]
[335792383,1724493050358,-500.0,0.00013698,2]
[335792384,1724493050368,-1179.09,0.00013698,2]
[335792385,1724493050379,-500.0,0.00013698,2]
[335792386,1724493050388,-930.02,0.00013698,2]
[335792387,1724493050399,-500.0,0.00013698,2]
[335792388,1724493050408,-732.54,0.00013698,2]
[335792389,1724493050418,-500.0,0.00013698,2]
[335792390,1724493050428,-640.2,0.00013698,2]
[335792391,1724493050437,-500.51934936,0.00013698,2]
[335792392,1724493050447,-500.0,0.00013698,2]
[335792393,1724493050457,-2423.38,0.00013698,2]
[335792394,1724493050467,-500.0,0.00013698,2]
[335792395,1724493050476,-590.96582078,0.00013698,2]
[335792396,1724493050496,-500.0,0.00013698,2]
[335792397,1724493050506,-500.0,0.00013698,2]
[335792398,1724493050516,-561.23,0.00013698,2]
[335792399,1724493050526,-500.0,0.00013698,2]
[335792400,1724493050535,-500.0,0.00013698,2]
[335792401,1724493050546,-500.0,0.00013698,2]
[335792402,1724493050555,-914.21,0.00013698,2]
[335792403,1724493050565,-500.0,0.00013698,2]
[335792404,1724493050574,-500.0,0.00013698,2]
[335792405,1724493050584,-500.0,0.00013698,2]
[335792406,1724493050594,-533.12472795,0.00013698,2]
[335792407,1724493050604,-739.52,0.00013698,2]
[335792408,1724493050616,-500.0,0.00013698,2]
[335792409,1724493050626,-784.57,0.00013698,2]
[335792410,1724493050637,-21989.87,0.00013698,2]
[335792411,1724493050649,-500.0,0.00013698,2]
[335792412,1724493050660,-500.0,0.00013698,2]
[335792413,1724493050670,-500.0,0.00013698,2]
[335792414,1724493050954,-500.0,0.00013698,2]
[335792415,1724493050964,-500.0,0.00013698,2]
[335792416,1724493050974,-500.0,0.00013698,2]
[335792417,1724493050984,-901.43,0.00013698,2]
[335792418,1724493050998,-500.0,0.00013698,2]
[335792419,1724493051008,-500.0,0.00013698,2]
[335792420,1724493051018,-500.0,0.00013698,2]
[335792421,1724493051029,-500.0,0.00013698,2]
[335792422,1724493051040,-500.0,0.00013698,2]
[335792423,1724493051051,-500.0,0.00013698,2]
[335792424,1724493051062,-283.12035407,0.00013698,2]
[335792425,1724493051073,-500.43012477,0.00013698,2]
[335792426,1724493051083,-500.0,0.00013698,2]
[335792427,1724493051093,-501.86672795,0.00013698,2]
[335792428,1724493051103,-942.24,0.00013698,2]
[335792429,1724493051113,-500.0,0.00013698,2]
[335792430,1724493051123,-9625.04,0.00013698,2]
[335792431,1724493051134,-1272.38,0.00013698,2]
[335792432,1724493051146,-500.0,0.00013698,2]
[335792433,1724493051156,-500.0,0.00013698,2]
[335792434,1724493051166,-525.8,0.00013698,2]
[335792435,1724493051176,-517.87,0.00013698,2]
[335792436,1724493051185,-2541.31,0.00013698,2]
[335792437,1724493051195,-1060.98,0.00013698,2]
[335792438,1724493051205,-500.0,0.00013698,2]
[335792439,1724493051215,-1528.62,0.00013698,2]
[335792440,1724493051225,-3230.43379502,0.00013698,2]
[335792444,1724493172162,500.0,0.00027,120]
[335792452,1724493302710,852.2,0.00012111,2]
[335792453,1724493312760,2800.0,0.00012111,2]
[335792454,1724493436924,608.83148573,0.00027,120]
[335792460,1724493503139,474.33,0.00010959,2]
[335792461,1724493513663,395.28,0.00010959,2]
[335792463,1724493524139,329.4,0.00010959,2]
[335792464,1724493534650,274.5,0.00010959,2]
[335792465,1724493545152,228.75,0.00010959,2]
[335792466,1724493555687,190.62,0.00010959,2]
[335792467,1724493566199,158.85,0.00010959,2]
[335792468,1724493576793,794.28,0.00010959,2]
[335792469,1724493591653,13941.9116817,0.000269,120]
[335792474,1724493791002,1741.0,0.00025,60]
[335792477,1724494050171,-166.666666,0.00012374,2]
[335792478,1724494050195,-166.666666,0.0001242,2]
[335792479,1724494050220,-166.666666,0.00012466,2]
[335792480,1724494050243,-166.666666,0.00012512,2]
[335792481,1724494050269,-7016.80902756,0.00012551,2]
[335792482,1724494050292,-166.666666,0.00012558,2]
[335792483,1724494050315,-166.666666,0.00012604,2]
[335792484,1724494050340,-166.666666,0.0001265,2]
[335792485,1724494050364,-166.666666,0.00012696,2]
[335792486,1724494050386,-166.666666,0.00012742,2]
[335792487,1724494050408,-166.666666,0.00012788,2]
[335792488,1724494050431,-166.666666,0.00012835,2]
[335792489,1724494050452,-451.353476,0.00012877,2]
[335792490,1724494050473,-166.666666,0.00012881,2]
[335792491,1724494050495,-224.26699925,0.00012898,2]
[335792492,1724494050519,-284.76635273,0.00012898,2]
[335792493,1724494050540,-164.46638921,0.00012898,2]
[335792494,1724494050564,-166.666666,0.00012927,2]
[335792495,1724494050585,-300.0,0.00012933,2]
[335792496,1724494050612,-300.0,0.00012933,2]
[335792497,1724494050636,-166.666666,0.00012973,2]
[335792498,1724494050660,-217.1722967,0.00012985,2]
[335792499,1724494050684,-695.14803561,0.00012985,2]
[335792500,1724494050705,-776.68392197,0.00012985,2]
[335792501,1724494050730,-283.95148184,0.00012989,2]
[335792502,1724494050752,-2166.4854483,0.00012989,2]
[335792503,1724494050775,-166.666666,0.00013019,2]
[335792504,1724494050796,-174.72672334,0.00013025,2]
[335792505,1724494050817,-153.0,0.0001334,2]
[335792506,1724494050838,-153.0,0.0001334,2]
[335792507,1724494050860,-1657.30082509,0.00013497,2]
[335792508,1724494050882,-438.57129642,0.00013497,2]
[335792509,1724494053089,-232.07564866,0.00012971,2]
[335792510,1724494053111,-803.61286659,0.00013488,2]
[335792511,1724494053154,-2276.43670041,0.00013488,2]
[335792512,1724494053177,-1328.71879176,0.00013497,2]
[335792513,1724494053198,-153.0,0.000135,2]
[335792514,1724494053219,-5720.57521366,0.00013553,2]
[335792515,1724494053241,-915.45807821,0.00013588,2]
[335792519,1724494152110,-862.0616286,0.00012479,2]
[335793158,1724494237967,-682.873977,0.00012877,2]
[335793160,1724494237977,-8844.39705201,0.0001305,2]
[335793162,1724494237988,-1000.0,0.00013357,2]
[335793164,1724494237998,-500.0,0.00013378,2]
[335793166,1724494238008,-383.88441624,0.00013387,2]
[335793168,1724494238017,-490.29675612,0.00013391,2]
[335793181,1724494238128,-509.70324388,0.00013391,2]
[335793183,1724494238138,-1000.0,0.00013418,2]
[335793185,1724494238148,-345.80770526,0.0001343,2]
[335793187,1724494238157,-1000.0,0.00013432,2]
[335793189,1724494238168,-1000.0,0.00013472,2]
[335793191,1724494238178,-300.0,0.00013477,2]
[335793194,1724494238188,-300.0,0.00013477,2]
[335793197,1724494238198,-1000.0,0.00013478,2]
[335793199,1724494238210,-1000.0,0.00013503,2]
[335793202,1724494238221,-1000.0,0.00013512,2]
[335793204,1724494238232,-1000.0,0.00013547,2]
[335793206,1724494238241,-1000.0,0.00013584,2]
[335793208,1724494238253,-8205.17570546,0.00013588,2]
[335793210,1724494238265,-31904.78525619,0.00013588,2]
[335793212,1724494238275,-1000.0,0.00013589,2]
[335793214,1724494238284,-637.38311664,0.00013592,2]
[335793216,1724494238294,-258.7117552,0.00013593,2]
[335793218,1724494238304,-637.38311661,0.00013594,2]
[335793220,1724494238314,-637.38311661,0.00013595,2]
[335793222,1724494238323,-637.38311661,0.00013597,2]
[335793224,1724494238333,-669.27483819,0.00013597,2]
[335793226,1724494238343,-188.6196501,0.00013597,2]
[335793228,1724494238352,-637.38311661,0.00013598,2]
[335793230,1724494238362,-153.0,0.000136,2]
[335793232,1724494238372,-150.112233,0.000136,2]
[335793235,1724494238383,-150.112233,0.000136,2]
[335793237,1724494238394,-150.112233,0.000136,2]
[335793239,1724494238406,-150.112233,0.000136,2]
[335793241,1724494238416,-150.112233,0.000136,2]
[335793243,1724494238426,-150.112233,0.000136,2]
[335793245,1724494238436,-150.112233,0.000136,2]
[335793247,1724494238445,-243.2101,0.00013631,2]
[335793249,1724494238455,-300.0,0.0001365,2]
[335793251,1724494238466,-615.02709893,0.0001366,2]
[335793253,1724494238476,-300.0,0.00013672,2]
[335793255,1724494238486,-312.01579195,0.00013673,2]
[335793257,1724494238496,-350.02199508,0.00013673,2]
[335793259,1724494238506,-500.0,0.00013673,2]
[335793261,1724494238516,-600.0,0.00013676,2]
[335793263,1724494238525,-155.0,0.0001368,2]
[335793265,1724494238534,-836.47866191,0.00013688,2]
[335793267,1724494238544,-534.91146023,0.00013688,2]
[335793270,1724494238554,-474585.18930058,0.00013688,2]
[335793271,1724494238566,-7763.62253035,0.00013688,2]
[335793272,1724494238579,-6258.26766098,0.00013688,2]
[335793629,1724494242668,-2596.97571274,0.00012999,2]
[335793632,1724494242678,-5726.22428726,0.00013688,2]
[335793634,1724494242690,-55160.25267983,0.00013688,2]
[335793636,1724494242700,-500.0,0.00013698,2]
[335793638,1724494242709,-368.72291704,0.00013698,2]
[335793640,1724494242719,-213.42060236,0.00013698,2]
[335793643,1724494242730,-6755.67246786,0.00013698,2]
[335793646,1724494242740,-230.23310687,0.00013698,2]
[335793650,1724494242749,-500.0,0.00013698,2]
[335793653,1724494242759,-500.0,0.00013698,2]
[335793655,1724494242768,-502.96034577,0.00013698,2]
[335793658,1724494242778,-500.0,0.00013698,2]
[335793660,1724494242788,-434.4386537,0.00013698,2]
[335793662,1724494242801,-500.0,0.00013698,2]
[335793664,1724494242811,-500.0,0.00013698,2]
[335793666,1724494242820,-504.91529324,0.00013698,2]
[335793668,1724494242830,-500.68041564,0.00013698,2]
[335793670,1724494242840,-500.0,0.00013698,2]
[335793672,1724494242850,-516.71,0.00013698,2]
[335793674,1724494242860,-500.0,0.00013698,2]
[335793676,1724494242870,-500.0,0.00013698,2]
[335793678,1724494242880,-500.0,0.00013698,2]
[335793680,1724494242889,-500.0,0.00013698,2]
[335793682,1724494242898,-554.37074872,0.00013698,2]
[335793684,1724494242908,-706.63,0.00013698,2]
[335793686,1724494242917,-821.97,0.00013698,2]
[335793688,1724494242926,-500.0,0.00013698,2]
[335793690,1724494242935,-500.55269522,0.00013698,2]
[335793692,1724494242944,-500.0,0.00013698,2]
[335793694,1724494242954,-511.99630393,0.00013698,2]
[335793696,1724494242963,-1042.4,0.00013698,2]
[335793698,1724494242972,-500.0,0.00013698,2]
[335793700,1724494242982,-500.0,0.00013698,2]
[335793702,1724494242991,-500.0,0.00013698,2]
[335793704,1724494243001,-727.18,0.00013698,2]
[335793706,1724494243011,-500.0,0.00013698,2]
[335793708,1724494243021,-500.0,0.00013698,2]
[335793710,1724494243030,-442.44977797,0.00013698,2]
[335793712,1724494243040,-500.0,0.00013698,2]
[335793714,1724494243049,-500.0,0.00013698,2]
[335793716,1724494243059,-500.0,0.00013698,2]
[335793718,1724494243069,-1305.61,0.00013698,2]
[335793720,1724494243078,-500.0,0.00013698,2]
[335793722,1724494243087,-500.0,0.00013698,2]
[335793724,1724494243097,-606.47,0.00013698,2]
[335793726,1724494243106,-350.0,0.00013698,2]
[335793728,1724494243115,-500.0,0.00013698,2]
[335793730,1724494243125,-625.48,0.00013698,2]
[335793732,1724494243137,-500.0,0.00013698,2]
[335793735,1724494243147,-500.0,0.00013698,2]
[335793739,1724494243158,-500.0,0.00013698,2]
[335793742,1724494243167,-500.54700037,0.00013698,2]
[335793744,1724494243177,-519.26554519,0.00013698,2]
[335793746,1724494243186,-500.0,0.00013698,2]
[335793748,1724494243195,-548.55,0.00013698,2]
[335793750,1724494243205,-501.1535577,0.00013698,2]
[335793752,1724494243214,-500.0,0.00013698,2]
[335793754,1724494243223,-500.0,0.00013698,2]
[335793756,1724494243233,-536.71473658,0.00013698,2]
[335793757,1724494243242,-501.9178926,0.00013698,2]
[335793758,1724494243252,-509.38034632,0.00013698,2]
[335793759,1724494243261,-1210.38,0.00013698,2]
[335793760,1724494243270,-502.17279069,0.00013698,2]
[335793761,1724494243280,-500.0,0.00013698,2]
[335793762,1724494243289,-500.0,0.00013698,2]
[335793763,1724494243299,-617.55,0.00013698,2]
[335793764,1724494243309,-500.0,0.00013698,2]
[335793765,1724494243319,-559.99,0.00013698,2]
[335793766,1724494243329,-506.37907937,0.00013698,2]
[335793767,1724494243339,-767.23,0.00013698,2]
[335793768,1724494243349,-500.0,0.00013698,2]
[335793769,1724494243361,-503.69866884,0.00013698,2]
[335793770,1724494243371,-501.64568335,0.00013698,2]
[335793771,1724494243381,-822.67,0.00013698,2]
[335793772,1724494243390,-500.0,0.00013698,2]
[335793774,1724494243400,-500.0,0.00013698,2]
[335793776,1724494243410,-500.0,0.00013698,2]
[335793778,1724494243421,-822.28,0.00013698,2]
[335793781,1724494243433,-502.28746438,0.00013698,2]
[335793783,1724494243443,-500.0,0.00013698,2]
[335793785,1724494243453,-511.473911,0.00013698,2]
[335793787,1724494243464,-621.75,0.00013698,2]
[335793789,1724494243474,-500.0,0.00013698,2]
[335793791,1724494243483,-863.54,0.00013698,2]
[335793792,1724494243492,-500.0,0.00013698,2]
[335793793,1724494243502,-500.0,0.00013698,2]
[335793794,1724494243511,-286.92579361,0.00013698,2]
[335793795,1724494243521,-500.0,0.00013698,2]
[335793809,1724494243750,-500.0,0.00013698,2]
[335793811,1724494243760,-500.0,0.00013698,2]
[335793813,1724494243770,-500.0,0.00013698,2]
[335793815,1724494243780,-500.0,0.00013698,2]
[335793817,1724494243790,-500.0,0.00013698,2]
[335793819,1724494243800,-500.0,0.00013698,2]
[335793821,1724494243809,-500.0,0.00013698,2]
[335793823,1724494243819,-601.53830752,0.00013698,2]
[335793825,1724494243828,-500.0,0.00013698,2]
[335793827,1724494243837,-500.0,0.00013698,2]
[335793829,1724494243847,-500.0,0.00013698,2]
[335793831,1724494243856,-501.19817858,0.00013698,2]
[335793833,1724494243873,-500.18172759,0.00013698,2]
[335793835,1724494243883,-700.7,0.00013698,2]
[335793837,1724494243892,-682.45,0.00013698,2]
[335793839,1724494243900,-500.0,0.00013698,2]
[335793841,1724494243910,-500.0,0.00013698,2]
[335793843,1724494243920,-500.0,0.00013698,2]
[335793846,1724494243931,-500.0,0.00013698,2]
[335793847,1724494243941,-500.0,0.00013698,2]
[335793849,1724494243950,-501.38933766,0.00013698,2]
[335793851,1724494243960,-500.0,0.00013698,2]
[335793854,1724494243969,-500.0,0.00013698,2]
[335793856,1724494243979,-500.0,0.00013698,2]
[335793858,1724494243989,-500.0,0.00013698,2]
[335793860,1724494243999,-500.0,0.00013698,2]
[335793862,1724494244008,-204.97957713,0.00013698,2]
[335793864,1724494244019,-500.0,0.00013698,2]
[335793866,1724494244032,-540.19,0.00013698,2]
[335793868,1724494244042,-591.63,0.00013698,2]
[335793870,1724494244053,-500.0,0.00013698,2]
[335793873,1724494244066,-500.0,0.00013698,2]
[335793875,1724494244076,-2154.48,0.00013698,2]
[335793877,1724494244086,-500.0,0.00013698,2]
[335793879,1724494244097,-503.11997067,0.00013698,2]
[335793881,1724494244110,-598.69,0.00013698,2]
[335793883,1724494244121,-500.0,0.00013698,2]
[335793885,1724494244131,-500.0,0.00013698,2]
[335793887,1724494244142,-500.0,0.00013698,2]
[335793889,1724494244151,-500.0,0.00013698,2]
[335793890,1724494244162,-643.50200613,0.00013698,2]
[335793891,1724494244172,-500.0,0.00013698,2]
[335793892,1724494244181,-687.41,0.00013698,2]
[335793893,1724494244190,-500.0,0.00013698,2]
[335793894,1724494244201,-500.0,0.00013698,2]
[335793895,1724494244211,-500.0,0.00013698,2]
[335793896,1724494244221,-500.0,0.00013698,2]
[335793897,1724494244231,-500.0,0.00013698,2]
[335793898,1724494244241,-500.0,0.00013698,2]
[335793899,1724494244251,-501.67479403,0.00013698,2]
[335793900,1724494244261,-416.90936469,0.00013698,2]
[335793901,1724494244271,-500.0,0.00013698,2]
[335793902,1724494244280,-500.0,0.00013698,2]
[335793904,1724494244290,-500.0,0.00013698,2]
[335793905,1724494244299,-500.0,0.00013698,2]
[335793907,1724494244309,-500.0,0.00013698,2]